bitfinex/quotes_SOLUSD_20241213
["timestamp","ask_amount","ask_price","bid_price","bid_amount"]
[1734107835076,20.0,222.06,222.01,14.07729181]
[1734107835283,20.0,222.09,222.07,14.07729181]
[1734107836794,43.776884,222.08,222.07,14.07729181]
[1734107837574,2.13,222.17,222.1,14.07729181]
[1734107837777,3.99868431,222.21,222.12,14.07729181]
[1734107837994,3.99868431,222.21,222.15,14.07729181]
[1734107838473,3.99868431,222.21,222.13,14.07729181]
[1734107838797,3.99868431,222.21,222.19,14.07729181]
[1734107839011,3.99868431,222.21,222.14,14.07729181]
[1734107839170,11.2511,222.2,222.14,14.07729181]
[1734107839808,20.0,222.17,222.14,14.07729181]
[1734107840186,20.0,222.17,222.12,14.07729181]
[1734107840871,11.2511,222.2,222.14,14.07729181]
[1734107841074,3.99868431,222.21,222.18,14.07729181]
[1734107842081,3.99868431,222.21,222.16,14.07729181]
[1734107842082,20.0,222.18,222.16,14.07729181]
[1734107842290,20.0,222.18,222.12,14.07729181]
[1734107842496,2.92925851,222.22,222.17,14.07729181]
[1734107842805,11.2486,222.25,222.23,14.07729181]
[1734107843174,26.52064282,222.29,222.23,14.07729181]
[1734107843374,18.17464282,222.29,222.23,14.07729181]
[1734107843708,18.17464282,222.29,222.25,14.07729181]
[1734107844299,18.17464282,222.29,222.23,14.07729181]
[1734107844608,18.17464282,222.29,222.26,14.07729181]
[1734107845281,11.2449,222.33,222.24,14.07729181]
[1734107845489,11.2449,222.33,222.3,14.07729181]
[1734107845684,2.10067849,222.35,222.32,14.07729181]
[1734107845886,11.2415,222.39,222.32,14.07729181]
[1734107846085,33.7245,222.39,222.32,14.07729181]
[1734107846289,33.7245,222.39,222.3,14.07729181]
[1734107846703,33.7245,222.39,222.33,14.07729181]
[1734107847004,11.2415,222.39,222.33,14.07729181]
[1734107847213,11.2415,222.39,222.31,14.07729181]
[1734107847405,6.92794282,222.41,222.37,14.07729181]
[1734107848605,11.2398,222.43,222.39,14.07729181]
[1734107848790,18.68781112,222.47,222.42,14.07729181]
[1734107849789,18.68781112,222.47,222.4,14.07729181]
[1734107849989,20.0,222.44,222.4,14.07729181]
[1734107850709,20.0,222.4,222.38,14.07729181]
[1734107850912,20.0,222.37,222.36,14.07729181]
[1734107851097,20.0,222.36,222.34,14.07729181]
[1734107851296,23.776884,222.35,222.32,14.07729181]
[1734107851489,20.0,222.32,222.3,14.07729181]
[1734107851690,23.776884,222.31,222.3,14.07729181]
[1734107852693,20.0,222.29,222.28,14.07729181]
[1734107853601,23.776884,222.31,222.3,14.07729181]
[1734107853806,20.0,222.31,222.3,14.07729181]
[1734107855895,23.776884,222.34,222.32,14.07729181]
[1734107856218,23.776884,222.36,222.35,14.07729181]
[1734107856595,23.776884,222.38,222.35,14.07729181]
[1734107857702,43.776884,222.36,222.35,14.07729181]
[1734107858308,43.776884,222.36,222.33,14.07729181]
[1734107858309,23.776884,222.35,222.33,14.07729181]
[1734107858505,23.776884,222.31,222.21,27.83891633]
[1734107859931,23.776884,222.31,222.21,6.456]
[1734107860097,23.776884,222.27,222.21,6.456]
[1734107860296,20.0,222.28,222.21,6.456]
[1734107860620,20.0,222.28,222.21,27.83891633]
[1734107860998,20.0,222.28,222.21,6.456]
[1734107862732,23.776884,222.27,222.21,6.456]
[1734107863027,23.776884,222.27,222.16,6.4659]
[1734107863325,20.0,222.24,222.16,6.4659]
[1734107863901,43.776884,222.23,222.13,2.2714]
[1734107864532,43.776884,222.23,222.12,21.38291633]
[1734107864902,20.0,222.23,222.14,21.38291633]
[1734107865129,20.0,222.23,222.17,21.38291633]
[1734107865303,31.2462,222.3,222.19,21.38291633]
[1734107865505,31.2462,222.3,222.2,21.38291633]
[1734107866028,31.2462,222.3,222.19,21.38291633]
[1734107866641,20.0,222.26,222.16,21.38291633]
[1734107866807,11.247,222.28,222.15,21.38291633]
[1734107866808,20.0,222.25,222.15,21.38291633]
[1734107867123,20.0,222.25,222.14,20.0]
[1734107867124,23.776884,222.24,222.14,21.38291633]
[1734107867632,23.776884,222.24,222.13,21.38291633]
[1734107867931,23.776884,222.24,222.12,21.38291633]
[1734107868138,20.0,222.21,222.12,21.38291633]
[1734107868636,20.0,222.21,222.14,21.38291633]
[1734107868937,20.0,222.21,222.1,6.0858]
[1734107868938,20.0,222.23,222.16,21.38291633]
[1734107869128,20.0,222.25,222.17,21.38291633]
[1734107869905,20.0,222.25,222.18,21.38291633]
[1734107870224,20.0,222.25,222.14,15.0]
[1734107870225,20.0,222.25,222.17,21.38291633]
[1734107870823,23.776884,222.27,222.19,21.38291633]
[1734107871534,20.0,222.28,222.21,21.38291633]
[1734107872035,6.0378,222.38,222.25,21.38291633]
[1734107872036,11.243,222.36,222.25,21.38291633]
[1734107872236,11.243,222.36,222.21,15.0]
[1734107872237,18.002569,222.37,222.26,21.38291633]
[1734107872465,18.002569,222.37,222.27,21.38291633]
[1734107872646,11.2415,222.39,222.28,21.38291633]
[1734107872940,6.92794282,222.4,222.28,21.38291633]
[1734107873111,6.92794282,222.4,222.27,21.38291633]
[1734107873309,18.16904282,222.4,222.26,21.38291633]
[1734107873621,18.16904282,222.4,222.25,21.38291633]
[1734107874020,23.776884,222.36,222.25,21.38291633]
[1734107874347,20.0,222.37,222.26,21.38291633]
[1734107875420,23.776884,222.36,222.26,21.38291633]
[1734107875622,23.776884,222.36,222.23,21.38291633]
[1734107875822,23.776884,222.34,222.23,21.38291633]
[1734107876117,23.776884,222.34,222.22,27.91491633]
[1734107876527,23.776884,222.34,222.23,21.38291633]
[1734107877141,23.776884,222.34,222.24,21.38291633]
[1734107877345,23.776884,222.34,222.25,21.38291633]
[1734107877923,23.776884,222.34,222.26,21.38291633]
[1734107878654,23.776884,222.34,222.25,21.38291633]
[1734107878853,23.776884,222.34,222.23,21.38291633]
[1734107880751,23.776884,222.34,222.25,21.38291633]
[1734107881858,20.0,222.31,222.23,21.38291633]
[1734107882060,23.776884,222.3,222.2,21.38291633]
[1734107882230,23.776884,222.3,222.19,21.38291633]
[1734107882427,23.776884,222.3,222.18,21.38291633]
[1734107882627,23.776884,222.3,222.22,21.38291633]
[1734107882838,20.0,222.31,222.25,21.38291633]
[1734107883054,20.0,222.31,222.26,21.38291633]
[1734107883552,20.0,222.31,222.2,21.38291633]
[1734107883553,20.0,222.33,222.24,21.38291633]
[1734107883941,20.0,222.33,222.23,21.38291633]
[1734107884353,23.776884,222.32,222.2,21.38291633]
[1734107884548,23.776884,222.28,222.18,21.38291633]
[1734107884861,20.0,222.29,222.21,21.38291633]
[1734107885152,20.0,222.29,222.21,13.36371333]
[1734107885724,5.51168133,222.32,222.23,13.36371333]
[1734107885924,5.51168133,222.32,222.24,13.36371333]
[1734107885925,4.51168133,222.32,222.24,13.36371333]
[1734107886131,20.0,222.3,222.23,13.36371333]
[1734107887247,20.0,222.3,222.2,13.36371333]
[1734107887633,20.0,222.3,222.21,13.36371333]
[1734107887944,20.0,222.3,222.22,13.36371333]
[1734107888150,20.0,222.3,222.21,13.36371333]
[1734107888361,20.0,222.3,222.23,13.36371333]
[1734107888566,20.0,222.32,222.23,13.36371333]
[1734107888730,20.0,222.33,222.23,13.36371333]
[1734107889055,20.0,222.32,222.23,13.36371333]
[1734107889236,20.0,222.32,222.21,13.36371333]
[1734107889552,20.0,222.32,222.22,13.36371333]
[1734107890551,20.0,222.28,222.19,13.36371333]
[1734107891341,23.776884,222.22,222.08,15.0]
[1734107891654,23.776884,222.18,222.07,6.286]
[1734107891828,20.0,222.15,222.05,15.69481333]
[1734107892030,20.0,222.15,222.03,13.36371333]
[1734107892031,23.776884,222.14,222.03,13.36371333]
[1734107892241,23.776884,222.14,222.02,6.286]
[1734107892455,20.0,222.11,222.02,6.286]
[1734107892640,20.0,222.11,222.0,13.36371333]
[1734107893061,20.0,222.11,222.01,13.36371333]
[1734107893234,20.0,222.11,222.02,21.42121807]
[1734107894434,20.0,222.11,222.01,21.42121807]
[1734107894643,23.776884,222.1,222.01,21.42121807]
[1734107894854,23.776884,222.1,221.99,21.42121807]
[1734107895165,23.776884,222.1,222.0,21.42121807]
[1734107895664,20.0,222.12,222.04,21.42121807]
[1734107895865,8.2407,222.15,222.07,21.42121807]
[1734107896074,20.0,222.12,222.05,21.42121807]
[1734107896234,20.0,222.12,222.01,21.42121807]
[1734107896541,20.0,222.12,221.97,6.4851]
[1734107896542,20.0,222.11,222.0,21.42121807]
[1734107896747,20.0,222.11,222.02,21.42121807]
[1734107897261,20.0,222.11,222.03,21.42121807]
[1734107897662,8.2407,222.15,222.04,21.42121807]
[1734107897856,20.0,222.12,222.06,21.42121807]
[1734107898059,20.0,222.12,222.05,21.42121807]
[1734107898457,20.0,222.12,222.0,21.42121807]
[1734107899174,19.4947,222.15,221.97,6.4851]
[1734107899175,20.0,222.08,222.01,21.42121807]
[1734107899542,20.0,222.08,222.0,21.42121807]
[1734107900647,13.75931739,222.15,221.99,0.12549]
[1734107900849,2.18,222.15,222.1,21.42121807]
[1734107901366,2.18,222.15,222.09,21.42121807]
[1734107901546,2.18,222.15,222.07,21.42121807]
[1734107901866,2.18,222.15,222.05,21.42121807]
[1734107902060,2.18,222.15,222.04,21.42121807]
[1734107902676,23.776884,222.14,222.05,21.42121807]
[1734107903046,20.0,222.11,222.04,21.42121807]
[1734107903248,20.0,222.1,222.01,21.42121807]
[1734107903468,20.0,222.1,222.02,21.42121807]
[1734107903752,20.0,222.1,222.04,21.42121807]
[1734107903954,20.0,222.13,222.05,21.42121807]
[1734107904157,2.18,222.15,222.05,21.42121807]
[1734107904158,23.776884,222.14,222.05,21.42121807]
[1734107904365,2.18,222.15,222.06,21.42121807]
[1734107904574,2.18,222.15,222.09,21.42121807]
[1734107904869,8.35388359,222.2,222.11,21.42121807]
[1734107904870,6.3209,222.2,222.11,21.42121807]
[1734107905042,6.3209,222.2,222.13,21.42121807]
[1734107905467,6.3209,222.2,222.11,21.42121807]
[1734107906245,20.0,222.17,222.11,21.42121807]
[1734107906647,20.0,222.17,222.09,21.42121807]
[1734107906853,20.0,222.17,222.08,21.42121807]
[1734107907140,6.3209,222.2,222.08,21.42121807]
[1734107907141,20.0,222.15,222.08,21.42121807]
[1734107908265,20.0,222.15,222.07,21.42121807]
[1734107908655,20.0,222.11,222.03,21.42121807]
[1734107909955,20.0,222.16,222.08,21.42121807]
[1734107910361,20.0,222.16,222.1,21.42121807]
[1734107910559,20.0,222.16,222.11,21.42121807]
[1734107910765,20.0,222.16,222.09,21.42121807]
[1734107911380,20.0,222.16,222.1,21.42121807]
[1734107911686,20.0,222.16,222.08,21.42121807]
[1734107911856,23.776884,222.15,222.04,21.42121807]
[1734107912062,23.776884,222.15,222.05,21.42121807]
[1734107912471,23.776884,222.11,222.01,21.42121807]
[1734107912775,20.0,222.08,222.0,21.42121807]
[1734107912978,20.0,222.08,222.02,21.42121807]
[1734107913278,20.0,222.08,222.04,21.42121807]
[1734107915179,20.0,222.08,222.04,13.38579111]
[1734107915663,20.0,222.11,222.06,13.38579111]
[1734107915859,20.0,222.11,222.08,13.38579111]
[1734107916179,6.8557206,222.19,222.1,13.38579111]
[1734107916384,6.8557206,222.19,222.11,13.38579111]
[1734107916755,6.8557206,222.19,222.1,13.38579111]
[1734107917064,6.8557206,222.19,222.11,13.38579111]
[1734107917562,23.776884,222.18,222.11,13.38579111]
[1734107917761,20.0,222.15,222.11,13.38579111]
[1734107918353,23.776884,222.18,222.11,13.38579111]
[1734107918779,20.0,222.16,222.11,13.38579111]
[1734107918980,20.0,222.16,222.12,13.38579111]
[1734107919278,20.0,222.16,222.1,13.38579111]
[1734107919687,20.0,222.16,222.13,13.38579111]
[1734107919863,20.0,222.17,222.15,13.38579111]
[1734107920065,20.0,222.17,222.13,13.38579111]
[1734107921270,20.0,222.17,222.12,13.38579111]
[1734107921469,20.0,222.17,222.11,13.38579111]
[1734107921682,20.0,222.17,222.12,13.38579111]
[1734107923179,20.0,222.17,222.11,13.38579111]
[1734107923990,20.0,222.17,222.13,13.38579111]
[1734107924289,20.0,222.17,222.14,13.38579111]
[1734107924492,20.0,222.21,222.16,13.38579111]
[1734107924660,20.0,222.22,222.17,13.38579111]
[1734107924859,20.0,222.22,222.15,13.38579111]
[1734107925064,20.0,222.22,222.13,13.38579111]
[1734107925288,20.0,222.22,222.12,13.38579111]
[1734107925474,20.0,222.22,222.14,13.38579111]
[1734107925866,20.0,222.22,222.15,13.38579111]
[1734107926069,18.1047206,222.25,222.18,13.38579111]
[1734107926986,11.249,222.25,222.18,13.38579111]
[1734107927787,11.249,222.25,222.09,25.31718385]
[1734107927788,2.3463,222.29,222.24,13.38579111]
[1734107927961,2.3463,222.29,222.26,13.38579111]
[1734107928284,2.2288,222.34,222.26,13.38579111]
[1734107928588,2.2288,222.34,222.27,13.38579111]
[1734107928796,13.385791,222.37,222.27,13.38579111]
[1734107928993,13.385791,222.37,222.28,13.38579111]
[1734107928994,1.964314,222.37,222.28,13.38579111]
[1734107929176,15.614591,222.39,222.28,13.38579111]
[1734107929577,2.75450125,222.38,222.2,0.67485277]
[1734107929773,13.99670125,222.38,222.28,13.38579111]
[1734107930001,11.2422,222.38,222.28,13.38579111]
[1734107930295,11.2422,222.38,222.3,13.38579111]
[1734107930916,2.2288,222.39,222.32,13.38579111]
[1734107931199,2.3342,222.44,222.38,13.38579111]
[1734107931893,2.3342,222.44,222.37,13.38579111]
[1734107932094,11.2394,222.43,222.23,23.776884]
[1734107932283,15.88111738,222.43,222.29,13.38579111]
[1734107933005,23.776884,222.42,222.33,13.38579111]
[1734107933299,20.0,222.4,222.33,13.38579111]
[1734107933504,20.0,222.4,222.32,13.38579111]
[1734107934293,20.0,222.4,222.24,0.67461323]
[1734107934294,20.0,222.4,222.35,13.38579111]
[1734107934689,20.0,222.4,222.34,13.38579111]
[1734107935104,2.3342,222.44,222.38,13.38579111]
[1734107936612,0.5222683,222.47,222.42,13.38579111]
[1734107936905,0.5222683,222.47,222.44,13.38579111]
[1734107937109,0.5222683,222.47,222.45,13.38579111]
[1734107937408,0.5222683,222.47,222.46,13.38579111]
[1734107938814,0.5222683,222.47,222.44,13.38579111]
[1734107938983,0.5222683,222.47,222.45,13.38579111]
[1734107939700,0.5222683,222.47,222.37,0.67421808]
[1734107939701,0.5222683,222.47,222.42,13.38579111]
[1734107939918,0.5222683,222.47,222.44,13.38579111]
[1734107940289,0.5222683,222.47,222.43,13.38579111]
[1734107941112,0.5222683,222.47,222.45,13.38579111]
[1734107941290,0.5222683,222.47,222.46,13.38579111]
[1734107942499,0.5222683,222.47,222.43,13.38579111]
[1734107942705,0.5222683,222.47,222.42,13.38579111]
[1734107942891,0.5222683,222.47,222.43,13.38579111]
[1734107943294,0.5222683,222.47,222.42,13.38579111]
[1734107943607,0.5222683,222.47,222.43,13.38579111]
[1734107944788,0.5222683,222.47,222.44,13.38579111]
[1734107944990,0.5222683,222.47,222.45,13.38579111]
[1734107945189,0.5222683,222.47,222.44,13.38579111]
[1734107945386,0.5222683,222.47,222.42,13.38579111]
[1734107945593,0.5222683,222.47,222.46,13.38579111]
[1734107946215,0.5222683,222.47,222.43,13.38579111]
[1734107946520,0.5222683,222.47,222.42,13.38579111]
[1734107946702,0.5222683,222.47,222.46,13.38579111]
[1734107947217,0.5222683,222.47,222.44,13.38579111]
[1734107947548,0.5222683,222.47,222.45,13.38579111]
[1734107948393,0.5222683,222.47,222.43,13.38579111]
[1734107948595,0.5222683,222.47,222.38,13.38579111]
[1734107948886,23.776884,222.45,222.35,13.38579111]
[1734107949102,23.776884,222.45,222.32,13.38579111]
[1734107949103,20.0,222.42,222.32,13.38579111]
[1734107949422,23.776884,222.41,222.31,13.38579111]
[1734107949625,23.776884,222.41,222.3,13.38579111]
[1734107949789,23.776884,222.41,222.27,13.38579111]
[1734107949790,23.776884,222.37,222.27,13.38579111]
[1734107950110,23.776884,222.37,222.25,6.2096]
[1734107950111,20.0,222.33,222.25,13.38579111]
[1734107950422,11.2414,222.4,222.28,13.38579111]
[1734107950716,11.2414,222.4,222.22,0.67465003]
[1734107950717,20.0,222.4,222.33,13.38579111]
[1734107950911,20.0,222.4,222.22,15.0]
[1734107950912,20.0,222.4,222.3,13.38579111]
[1734107951218,20.0,222.4,222.29,13.38579111]
[1734107951219,20.0,222.36,222.29,13.38579111]
[1734107951740,20.0,222.36,222.21,0.67468289]
[1734107951741,20.0,222.32,222.25,13.38579111]
[1734107951939,20.0,222.32,222.26,13.38579111]
[1734107952235,20.0,222.32,222.27,13.38579111]
[1734107952609,20.0,222.32,222.26,13.38579111]
[1734107953136,20.0,222.32,222.29,13.38579111]
[1734107953342,20.0,222.35,222.28,13.38579111]
[1734107953638,20.0,222.35,222.27,13.38579111]
[1734107953851,20.0,222.31,222.19,6.2096]
[1734107954014,20.0,222.31,222.24,13.38579111]
[1734107954348,20.0,222.31,222.23,13.38579111]
[1734107954655,20.0,222.29,222.22,13.38579111]
[1734107954823,20.0,222.29,222.21,13.38579111]
[1734107955025,20.0,222.29,222.25,13.38579111]
[1734107955224,23.776884,222.35,222.26,13.38579111]
[1734107955442,23.776884,222.35,222.22,13.38579111]
[1734107955443,20.0,222.32,222.22,13.38579111]
[1734107955646,20.0,222.28,222.22,13.38579111]
[1734107955940,20.0,222.28,222.19,6.2096]
[1734107955941,20.0,222.28,222.23,13.38579111]
[1734107956149,20.0,222.28,222.22,13.38579111]
[1734107956520,10.55989895,222.39,222.27,13.38579111]
[1734107956843,4.20145301,222.42,222.22,0.67487628]
[1734107957024,8.59254337,222.42,222.26,13.38579111]
[1734107957337,15.0,222.4,222.23,13.38579111]
[1734107957548,3.61012491,222.39,222.23,13.38579111]
[1734107957712,13.94259521,222.41,222.28,13.38579111]
[1734107958951,11.2408,222.41,222.3,13.38579111]
[1734107959119,20.0,222.38,222.3,13.38579111]
[1734107959555,20.0,222.38,222.29,13.38579111]
[1734107959950,11.2408,222.41,222.3,13.38579111]
[1734107960133,11.2408,222.41,222.25,0.12549]
[1734107960134,2.1944,222.42,222.33,13.38579111]
[1734107960762,2.1944,222.42,222.32,13.38579111]
[1734107961056,2.1944,222.42,222.3,13.38579111]
[1734107961442,23.776884,222.41,222.28,13.38579111]
[1734107961739,20.0,222.38,222.28,13.38579111]
[1734107962351,20.0,222.36,222.28,13.38579111]
[1734107963851,20.0,222.36,222.27,13.38579111]
[1734107964056,23.776884,222.35,222.25,13.38579111]
[1734107964249,20.0,222.32,222.24,13.38579111]
[1734107964557,20.0,222.32,222.23,13.38579111]
[1734107964928,20.0,222.32,222.24,13.38579111]
[1734107965655,20.0,222.32,222.22,13.38579111]
[1734107966039,20.0,222.28,222.18,13.38579111]
[1734107967042,23.776884,222.27,222.17,13.38579111]
[1734107967737,23.776884,222.27,222.19,13.38579111]
[1734107967939,31.2471,222.28,222.2,13.38579111]
[1734107967940,20.0,222.28,222.2,13.38579111]
[1734107968774,20.0,222.24,222.17,13.38579111]
[1734107968949,20.0,222.24,222.16,13.38579111]
[1734107969663,20.0,222.24,222.15,13.38579111]
[1734107969858,20.0,222.24,222.16,13.38579111]
[1734107970265,20.0,222.24,222.15,13.38579111]
[1734107970765,20.0,222.24,222.16,13.38579111]
[1734107973148,20.0,222.2,222.14,13.38579111]
[1734107973358,20.0,222.2,222.13,13.38579111]
[1734107974481,20.0,222.2,222.15,13.38579111]
[1734107974770,20.0,222.25,222.15,13.38579111]
[1734107975072,20.0,222.21,222.15,13.38579111]
[1734107975570,23.776884,222.27,222.18,13.38579111]
[1734107975955,23.776884,222.27,222.2,13.38579111]
[1734107976146,23.776884,222.27,222.19,13.38579111]
[1734107976352,23.776884,222.27,222.18,13.38579111]
[1734107976958,23.776884,222.27,222.19,13.38579111]
[1734107977172,23.776884,222.29,222.19,13.38579111]
[1734107977386,19.48120414,222.31,222.2,13.38579111]
[1734107977669,11.2465,222.29,222.15,13.38579111]
[1734107977876,11.2465,222.29,222.16,13.38579111]
[1734107978074,11.2465,222.29,222.15,13.38579111]
[1734107978241,20.0,222.26,222.16,13.38579111]
[1734107978446,20.0,222.26,222.15,13.38579111]
[1734107978647,23.776884,222.25,222.1,0.67506676]
[1734107978873,23.776884,222.25,222.1,11.93096676]
[1734107979074,23.776884,222.25,222.15,13.38579111]
[1734107979370,23.776884,222.25,222.16,13.38579111]
[1734107980275,23.776884,222.25,222.1,11.93096676]
[1734107980276,20.0,222.21,222.12,13.38579111]
[1734107981177,20.0,222.21,222.07,0.67513272]
[1734107981178,23.776884,222.2,222.11,13.38579111]
[1734107981388,23.776884,222.2,222.1,13.38579111]
[1734107981759,20.0,222.14,222.01,11.2603]
[1734107982096,23.776884,222.13,222.01,13.38579111]
[1734107982257,20.0,222.08,221.99,13.38579111]
[1734107982456,11.2556,222.11,221.98,13.38579111]
[1734107982457,23.776884,222.1,221.98,13.38579111]
[1734107982789,23.776884,222.1,221.99,13.38579111]
[1734107983079,23.776884,222.1,221.98,13.38579111]
[1734107983288,20.0,222.07,221.97,13.38579111]
[1734107983877,20.0,222.07,221.98,13.38579111]
[1734107984175,20.0,222.07,222.0,13.38579111]
[1734107985117,20.0,222.07,221.95,6.87030513]
[1734107985118,20.0,222.07,221.99,13.38579111]
[1734107985457,23.776884,222.06,221.96,13.38579111]
[1734107985658,23.776884,222.06,221.95,13.38579111]
[1734107985659,20.0,222.03,221.95,13.38579111]
[1734107985861,20.0,222.03,221.96,13.38579111]
[1734107986283,20.0,222.03,221.97,13.38579111]
[1734107986584,23.776884,222.06,221.97,13.38579111]
[1734107986762,23.776884,222.06,221.91,17.673]
[1734107986763,2.2369,222.07,222.01,13.38579111]
[1734107986963,11.2555,222.12,222.03,13.38579111]
[1734107986964,2.3371,222.12,222.03,13.38579111]
[1734107987371,2.3371,222.12,222.04,13.38579111]
[1734107988062,20.0,222.1,222.03,13.38579111]
[1734107988385,20.0,222.1,222.02,13.38579111]
[1734107988682,20.0,222.1,222.03,13.38579111]
[1734107988891,2.3371,222.12,222.03,13.38579111]
[1734107989677,2.308591,222.12,222.03,13.38579111]
[1734107990305,2.308591,222.12,222.02,13.38579111]
[1734107990597,2.308591,222.12,222.03,13.38579111]
[1734107991600,2.308591,222.12,222.04,13.38579111]
[1734107991775,2.308591,222.12,222.03,13.38579111]
[1734107994501,2.308591,222.12,222.01,13.38579111]
[1734107994796,2.308591,222.12,222.02,13.38579111]
[1734107995587,2.308591,222.12,222.03,13.38579111]
[1734107997387,20.0,222.1,222.01,13.38579111]
[1734107997595,20.0,222.1,222.0,13.38579111]
[1734107997801,20.0,222.06,221.94,13.38579111]
[1734107998097,23.776884,222.05,221.92,13.38579111]
[1734107998298,20.0,222.02,221.92,13.38579111]
[1734107998506,20.0,222.02,221.93,13.38579111]
[1734107998996,23.776884,222.01,221.9,13.38579111]
[1734107999198,26.081784,222.01,221.91,13.38579111]
[1734108000298,22.3049,222.01,221.93,13.38579111]
[1734108000511,22.3049,222.01,221.92,13.38579111]
[1734108001080,22.3049,222.01,221.9,13.38579111]
[1734108001288,23.776884,222.0,221.88,13.38579111]
[1734108001489,20.0,221.97,221.87,13.38579111]
[1734108002213,20.0,221.97,221.9,13.38579111]
[1734108002374,2.3049,222.01,221.92,13.38579111]
[1734108002578,20.0,221.99,221.93,13.38579111]
[1734108002774,2.3049,222.01,221.94,13.38579111]
[1734108003406,20.0,221.99,221.83,11.94510369]
[1734108003606,11.2622,221.98,221.82,13.38579111]
[1734108003784,20.0,221.95,221.82,13.38579111]
[1734108003984,23.776884,221.94,221.77,0.67591686]
[1734108004193,23.776884,221.94,221.79,13.38579111]
[1734108004194,2.2729,221.9,221.79,13.38579111]
[1734108004887,2.2729,221.9,221.8,13.38579111]
[1734108005114,2.2729,221.9,221.82,13.38579111]
[1734108005303,2.2729,221.9,221.86,13.38579111]
[1734108005508,20.0,221.93,221.87,13.38579111]
[1734108006599,20.0,221.93,221.86,13.38579111]
[1734108006908,20.0,221.93,221.84,13.38579111]
[1734108007125,20.0,221.93,221.87,13.38579111]
[1734108007415,20.0,221.93,221.86,13.38579111]
[1734108007587,20.0,221.93,221.85,13.38579111]
[1734108007990,20.0,221.93,221.86,13.38579111]
[1734108008610,20.0,221.93,221.85,13.38579111]
[1734108009208,20.0,221.93,221.82,23.776884]
[1734108009209,20.0,221.93,221.82,13.38579111]
[1734108009414,20.0,221.93,221.81,13.38579111]
[1734108009724,20.0,221.93,221.82,13.38579111]
[1734108010093,20.0,221.93,221.81,13.38579111]
[1734108010926,20.0,221.89,221.81,13.38579111]
[1734108011107,20.0,221.89,221.77,0.6759644]
[1734108011308,20.0,221.89,221.8,13.38579111]
[1734108011520,20.0,221.89,221.77,0.6759644]
[1734108011521,20.0,221.89,221.81,13.38579111]
[1734108011730,20.0,221.89,221.82,13.38579111]
[1734108012027,20.0,221.89,221.81,13.38579111]
[1734108012193,20.0,221.89,221.82,13.38579111]
[1734108012793,20.0,221.89,221.81,13.38579111]
[1734108012990,20.0,221.93,221.83,13.38579111]
[1734108013304,20.0,221.92,221.84,13.38579111]
[1734108013921,20.0,221.92,221.81,13.38579111]
[1734108014725,20.0,221.92,221.77,0.6759644]
[1734108014726,20.0,221.92,221.8,13.38579111]
[1734108014907,23.776884,221.91,221.79,13.38579111]
[1734108015229,20.0,221.88,221.76,13.38579111]
[1734108015398,20.0,221.88,221.72,13.38579111]
[1734108015399,23.776884,221.85,221.72,13.38579111]
[1734108015927,23.776884,221.81,221.7,0.5222683]
[1734108016093,20.0,221.78,221.7,0.5222683]
[1734108017219,20.0,221.77,221.7,0.5222683]
[1734108018521,2.1817,221.8,221.72,21.4864764]
[1734108018726,2.1817,221.8,221.7,22.0087447]
[1734108019033,2.1817,221.8,221.7,0.5222683]
[1734108019218,22.1817,221.8,221.7,0.5222683]
[1734108019418,20.0,221.76,221.7,0.5222683]
[1734108019602,25.06034632,221.75,221.7,0.5222683]
[1734108019932,43.776884,221.74,221.7,0.5222683]
[1734108020105,20.0,221.72,221.7,0.5222683]
[1734108020421,20.0,221.71,221.7,0.5222683]
[1734108027107,2.1842,221.75,221.7,0.5222683]
[1734108027530,11.2744,221.74,221.7,0.5222683]
[1734108027744,17.74878726,221.74,221.7,0.5222683]
[1734108028420,20.0,221.71,221.7,0.5222683]
[1734108028619,43.776884,221.71,221.7,0.5222683]
[1734108029135,20.0,221.71,221.7,0.5222683]
[1734108031308,2.1842,221.75,221.7,0.5222683]
[1734108032534,23.776884,221.74,221.7,0.5222683]